[Event "CZE-ch U16 Open 2023"]
[Site "Teplice"]
[Date "2023.03.13"]
[Round "3.6"]
[White "Prazak, Daniel"]
[Black "Mohapl, Tomas"]
[Result "1-0"]
[ECO "B30"]
[WhiteElo "2064"]
[BlackElo "1946"]
[Annotator "TA"]
[PlyCount "91"]
[EventDate "2023.03.09"]
[EventType "swiss"]
[EventCountry "CZE"]
[SourceTitle "playchess.com"]
[Source "ChessBase"]
[SourceQuality "1"]
[TimeControl "40/5400+30:1800+30"]

{[%evp 20,91,28,27,24,32,31,28,54,37,45,23,21,0,0,0,0,0,0,0,0,0,0,0,82,-27,-23,-22,160,154,130,148,142,132,222,220,5541,5785,5397,5397,3540,2305,2428,1945,1782,778,713,490,466,449,429,300,307,306,303,300,300,285,447,293,660,652,640,623,579,533,785,724,5122,5122,5604,4906,837,714]} 1. e4 {[%emt 0:00:03]} c5 {[%emt 0:00:05]} 2. Nf3 {[%emt 0:00:21]} Nc6 {[%emt 0:00:06]} 3. Bb5 {[%emt 0:00:25]} Nf6 {[%emt 0:00:47][%cal Bg8f6,Bf6e8,Be8c7,Bc7e6,Be6d4][%mdl 32]} 4. Bxc6 {[%emt 0:00:56]} dxc6 {[%emt 0:00:20]} 5. d3 {[%emt 0:00:14]} g6 {[%emt 0:02:36]} 6. h3 {[%emt 0:00:18]} Bg7 {[%emt 0:01:02]} 7. O-O {[%emt 0:00:15]} O-O {[%emt 0:00:54]} 8. Nc3 {[%emt 0:01:11]} Ne8 {[%emt 0:05:35]} 9. Be3 {[%emt 0:02:01]} b6 {[%emt 0:00:55]} 10. Qd2 {[%emt 0:01:58]} Nc7 {[%emt 0:02:57]} 11. Bh6 {[%emt 0:02:57]} Ne6 {[%emt 0:07:03] B31: Sicilian: 2...Nc6 3 Bb5 g6.} 12. Bxg7 {[%emt 0:00:57]} Kxg7 {[%emt 0:00:30]} 13. Ne2 {[%emt 0:04:42]} Ba6 {[%emt 0:13:03] [#] White has an edge.} 14. Nh2 $146 {[%emt 0:05:36]} ({Predecessor:} 14. Rad1 Qc7 15. Ng5 Nxg5 16. Qxg5 c4 17. Nf4 cxd3 18. cxd3 Rad8 19. Rfe1 h6 20. Qg3 {½-½ Rey Chimera,L (1571)-Reboredo Martinez,C (1835) ESP-ch U16 Salobrena 2020 (5)}) 14... Nd4 {[%emt 0:05:10]} 15. Ng3 {[%emt 0:02:10]} e5 {[%emt 0:06:34]} 16. f4 {[%emt 0:11:20]} Qh4 {[%emt 0:06:34]} 17. Ne2 {[%emt 0:13:14]} (17. fxe5 $2 Qxg3 18. Ng4 Qh4 $19) 17... Nxe2+ {[%emt 0:06:28]} 18. Qxe2 {[%emt 0:00:36]} exf4 {[%emt 0:02:35]} 19. Qd2 {[%emt 0:01:59]} Qf6 {[%emt 0:02:42]} 20. Rxf4 {[%emt 0:06:00]} Qd4+ {[%emt 0:02:09]} 21. Kh1 {[%emt 0:02:02]} c4 {[%emt 0:05:27]} (21... Qxb2 $11 22. Raf1 Bc8) 22. Qb4 {[%emt 0:02:11]} ({Don't play} 22. Rh4 $6 h5 $11) (22. Raf1 $16) 22... c5 $11 {[%emt 0:07:26]} 23. Qa3 {[%emt 0:08:38]} cxd3 $2 {[%emt 0:01:04]} (23... Bb5 $11) 24. Qxa6 $16 {[%emt 0:00:59] White leaves nothing to chance now.} Qxb2 {[%emt 0:00:54]} 25. Rff1 {[%emt 0:01:26]} dxc2 {[%emt 0:05:23]} 26. Rac1 {[%emt 0:02:50]} b5 {[%emt 0:02:03]} (26... Rae8 $16) 27. e5 $18 {[%emt 0:02:30]} Rad8 $2 {[%emt 0:02:51]} (27... Qxe5 28. Rxc2 (28. Qxb5 Rab8 $18) 28... b4) 28. Qf6+ {[%emt 0:01:27]} (28. Qxa7 $2 Qxc1 29. Qxc5 Rd1 $19) 28... Kg8 {[%emt 0:00:05]} 29. Ng4 {[%emt 0:02:10][%cal Bh2g4,Bg4h6,Bh6f7,Bf7g5,Bg5f3][%mdl 32]} h5 {[%emt 0:01:18]} 30. Nh6+ {[%emt 0:01:35][%mdl 64] Deflection} Kh7 {[%emt 0:00:06]} 31. Nxf7 {[%emt 0:00:28] Threatening mate with Qe7.} Qc3 {[%emt 0:07:54]} 32. Qg5 {[%emt 0:01:06]} (32. Qe7 $142 Rfe8 33. Qc7 (33. Nxd8+ $2 {perishes.} Rxe7 34. Nc6 Re6 $19)) 32... Qd2 {[%emt 0:00:49]} 33. Rxc2 {[%emt 0:02:19][%mdl 64] Double Attack} Qxg5 {[%emt 0:01:19]} 34. Nxg5+ {[%emt 0:00:08]} Kh6 {[%emt 0:00:29]} 35. Nf3 {[%emt 0:00:55]} c4 {[%emt 0:00:31] [#]} 36. a4 $1 {[%emt 0:00:12]} a6 {[%emt 0:00:19]} 37. axb5 {[%emt 0:00:06]} axb5 {[%emt 0:00:01]} 38. Rb1 {[%emt 0:01:34]} g5 {[%emt 0:02:15]} (38... Rd5 {was necessary.} 39. Re2 Kg7) 39. e6 {[%emt 0:02:03] Black must now prevent e7.} Rfe8 {[%emt 0:00:38]} (39... Rd5 40. e7 Re8) 40. Rxb5 {[%emt 0:03:49] White is clearly winning.} g4 {[%emt 0:00:46]} 41. hxg4 {[%emt 0:30:42]} hxg4 {[%emt 0:01:35]} 42. Ne5 {[%emt 0:00:00] Strongly threatening Nf7+.} Rd1+ {[%emt 0:01:40]} 43. Kh2 {[%emt 0:00:00] Hoping for Rb6.} Kg5 {[%emt 0:01:02]} 44. Rxc4 {[%emt 0:00:00] White wants to mate with Nd7+.} Rxe6 {[%emt 0:00:55]} 45. Nxg4+ {[%emt 0:00:00]} Kg6 {[%emt 0:00:24] [#]} 46. Rc6 $3 {[%emt 0:00:00][%mdl 512] Ingenious play by Prazak!   Weighted Error Value: White=0.32/Black=0.54} 1-0

[Event "CZE-ch U16 Open 2023"]
[Site "Teplice"]
[Date "2023.03.13"]
[Round "3.7"]
[White "Vilimek, Vit"]
[Black "Kubin, Tomas Daniel"]
[Result "0-1"]
[ECO "B34"]
[WhiteElo "2018"]
[BlackElo "1936"]
[Annotator "TA"]
[PlyCount "66"]
[EventDate "2023.03.09"]
[EventType "swiss"]
[EventCountry "CZE"]
[SourceTitle "playchess.com"]
[Source "ChessBase"]
[SourceQuality "1"]
[TimeControl "40/5400+30:1800+30"]

{[%evp 13,66,0,-8,0,-11,-27,27,0,0,0,0,0,0,-31,-31,-29,-22,-66,-62,-51,-55,-50,-51,-53,0,-56,-55,-146,-99,-85,723,-229,-221,-251,-247,-275,-275,-321,-310,-295,-293,-1059,-1052,-1296,-316,-1125,-1082,-29970,-29971,-29970,-29971,-5832,-5820,-29993,-29994]} 1. e4 {[%emt 0:00:06]} c5 {[%emt 0:00:09]} 2. Nf3 {[%emt 0:00:10]} Nc6 {[%emt 0:00:07]} 3. d4 {[%emt 0:00:07]} cxd4 {[%emt 0:00:06]} 4. Nxd4 {[%emt 0:00:02]} Nf6 {[%emt 0:00:12]} 5. Nc3 {[%emt 0:00:06]} e5 {[%emt 0:00:13]} 6. Nxc6 {[%emt 0:00:20]} bxc6 {[%emt 0:00:36]} 7. Bd3 {[%emt 0:00:09]} Bb4 {[%emt 0:06:38]} 8. O-O {[%emt 0:00:09] B33: Sicilian: Pelikan and Sveshnikov Variations.} O-O {[%emt 0:03:25]} 9. f4 {[%emt 0:00:08] [#]} Qc7 $146 {[%emt 0:09:58]} (9... Bd6 $142) ({Predecessor:} 9... Bd6 10. Qe1 Re8 11. Kh1 exf4 12. Bxf4 Bxf4 13. Rxf4 d6 14. Qd1 Nd7 15. Rxf7 Kxf7 16. Bc4+ Ke7 17. Qg4 Qa5 18. e5 Qxe5 19. Qh4+ g5 20. Qf2 Kd8 {0-1 Dushyant,S (2332)-Ezat,M (2417) Sharjah Masters 4th 2021 (9)}) 10. Qe2 {[%emt 0:15:01] White has an edge.} Re8 {[%emt 0:20:22]} 11. fxe5 {[%emt 0:05:07]} Qxe5 {[%emt 0:00:50]} 12. Bf4 {[%emt 0:15:26]} Qa5 {[%emt 0:06:41][%cal Od7d6]} 13. e5 {[%emt 0:07:01]} Bxc3 {[%emt 0:09:06]} (13... d6 14. Ne4 Nxe4 15. Qxe4 Qc5+ 16. Kh1 $11) 14. bxc3 {[%emt 0:00:12]} d6 {[%emt 0:01:11][%cal Rd6e5]} 15. Kh1 {[%emt 0:15:03]} Bg4 {[%emt 0:15:52]} (15... Qxc3 $2 16. Qf3 $18) 16. Qf2 {[%emt 0:13:32]} (16. Bxh7+ $2 Kh8 17. Qd2 dxe5 $19) 16... dxe5 {[%emt 0:02:21]} 17. Bg5 {[%emt 0:00:50]} e4 $1 {[%emt 0:00:35]} (17... Qxc3 $2 18. Qg3 $18) 18. Bxf6 {[%emt 0:00:12]} gxf6 {[%emt 0:00:38]} (18... exd3 $15 19. Bd4 f6) 19. Bc4 {[%emt 0:05:37]} (19. Qxf6 $11 exd3 20. Qxf7+ Kh8 21. Qf6+ (21. cxd3 $2 Qxc3 22. Rac1 Qg7 $19) 21... Kg8 22. Qf7+ Kh8 23. Qf6+ (23. cxd3 $2 Qxc3 24. Rac1 Qg7 $19) 23... Kg8 24. Qf7+) 19... Qxc3 $15 {[%emt 0:01:28]} 20. Bb3 {[%emt 0:14:22]} (20. Qxf6 $15 Qxf6 21. Rxf6) 20... Kg7 {[%emt 0:04:53]} (20... e3 $142 $1 {[%cal Re3f2]} 21. Qg3 Kh8 22. Bxf7 (22. Qxg4 $2 e2 $19) 22... Re4) 21. Rae1 $17 {[%emt 0:06:32] Hoping for Re3.} Qe5 $2 {[%emt 0:01:54][%mdl 8192]} (21... h5 $6 22. h3 Be6 23. Rxe4 Bxb3 24. Rd4 $11 (24. Rxe8 Rxe8 25. cxb3 Re3 $15)) (21... f5 $17) 22. Qh4 $4 {[%emt 0:00:29][%mdl 8192] [#]} (22. Rxe4 $1 $18 {was the only winning move.} Qd6 23. Rxg4+ Kh8 24. Rf4) 22... Bf5 $1 $19 {[%emt 0:01:51]} ({And not} 22... h5 23. Ba4 Rac8 24. Bb3 $17) 23. Re3 {[%emt 0:00:44]} Rad8 {[%emt 0:01:23]} 24. Rfe1 {[%emt 0:00:27]} Bg6 {[%emt 0:02:12]} 25. Rh3 {[%emt 0:00:20]} e3 {[%emt 0:01:44][%cal Be4e3,Be3e2][%mdl 32]} 26. Qh6+ {[%emt 0:00:26] [#]} Kg8 $1 {[%emt 0:00:30] And now ...e2 would win.} 27. Kg1 $2 {[%emt 0:00:10]} (27. Rhxe3 $2 {too greedy.} Qxe3 28. Qxe3 Rxe3 $19) (27. Rg3 Rd7 28. Rxg6+ hxg6 29. Qxg6+ Kf8 30. Qh6+ Ke7 31. Qxe3) 27... e2 {[%emt 0:00:44]} 28. Rg3 {[%emt 0:00:28]} Qe4 $2 {[%emt 0:04:02]} ({Inferior is} 28... Rd1 29. Rxg6+ hxg6 30. Qxg6+ Kh8 31. Qh6+ Kg8 32. Qg6+ Kh8 33. Qh6+ Kg8 34. Qg6+ $11) (28... Qc5+ 29. Kh1 Qf5) 29. Kf2 $2 {[%emt 0:01:03]} (29. c3) 29... Rd1 {[%emt 0:01:43] ( -> ...Qd4+)} 30. Rxg6+ {[%emt 0:00:35]} hxg6 {[%emt 0:01:00]} 31. Bxf7+ {[%emt 0:00:04]} Kxf7 {[%emt 0:00:36]} 32. Qh7+ {[%emt 0:00:01]} Kf8 {[%emt 0:00:42][%csl Ge8][%cal Re4e3]} 33. Qh6+ {[%emt 0:00:10]} Kg8 {[%emt 0:00:24] Weighted Error Value: White=1.08/Black=0.33} 0-1

[Event "CZE-ch U16 Open 2023"]
[Site "Teplice"]
[Date "2023.03.13"]
[Round "3.8"]
[White "Slaby, Matej"]
[Black "Lang, Simon"]
[Result "0-1"]
[ECO "A04"]
[WhiteElo "1932"]
[BlackElo "1974"]
[Annotator "TA"]
[PlyCount "162"]
[EventDate "2023.03.09"]
[EventType "swiss"]
[EventCountry "CZE"]
[SourceTitle "playchess.com"]
[Source "ChessBase"]
[SourceQuality "1"]
[TimeControl "40/5400+30:1800+30"]

{[%evp 13,162,7,13,0,2,-5,7,4,22,0,0,-12,2,0,0,-14,0,-15,-18,-11,-9,-37,-33,-37,-20,-34,-17,-30,-9,-56,-50,-57,-25,-29,-36,-46,-9,-57,-55,-83,-88,-123,-123,-170,-158,-155,-167,-166,-149,-156,-148,-149,-147,-159,-158,-162,-145,-166,-160,-162,-154,-172,-141,-135,-140,-144,-143,-137,-134,-148,-145,-149,-149,-146,-131,-131,-127,-125,-125,-140,-140,-164,-98,-124,-98,-98,-8,-8,-8,-8,-8,-8,-8,-8,-8,-8,-8,-105,-8,-8,-8,-8,-8,-11,-19,-75,0,-89,-89,-90,-90,-90,-8,-8,-8,-90,0,0,0,-90,-8,-89,-8,-8,-8,-8,0,0,0,0,0,0,0,0,0,0,0,0,0,0,0,-29973,-29974,-29975,-29976,-29983,-29984,-29985,-29986,-29986,-29987]} 1. Nf3 {[%emt 0:00:10]} c5 {[%emt 0:00:44]} 2. c3 {[%emt 0:00:10]} Nf6 {[%emt 0:00:46]} 3. d4 {[%emt 0:00:05]} e6 {[%emt 0:00:47]} 4. e3 {[%emt 0:00:12]} b6 {[%emt 0:01:45]} 5. Nbd2 {[%emt 0:02:03]} Be7 {[%emt 0:01:37]} 6. Bd3 {[%emt 0:00:17]} Ba6 {[%emt 0:01:54]} 7. Bxa6 {[%emt 0:01:56]} Nxa6 {[%emt 0:00:12]} 8. Qe2 {[%emt 0:00:14] A46: 1 d4 Nf6 2 Nf3 e6: Torre, London and Colle Systems.} Qc8 {[%emt 0:01:48] [#]} 9. a4 $146 {[%emt 0:02:43]} ({Predecessor:} 9. O-O Nc7 10. dxc5 bxc5 11. e4 d5 12. exd5 Ncxd5 13. Ne5 O-O 14. Ndc4 Nd7 15. Nxd7 Qxd7 {0-1 Winterkamp,S (1950)-Okrajek,A (2078) NRW Class2 1718 2017 (4.7)}) 9... Nc7 {[%emt 0:03:33]} 10. O-O {[%emt 0:01:52] The position is equal.} Qa6 {[%emt 0:09:20]} 11. Qxa6 {[%emt 0:09:24]} Nxa6 {[%emt 0:00:08]} 12. b3 {[%emt 0:00:16]} Rc8 {[%emt 0:05:18]} 13. Bb2 {[%emt 0:01:59]} O-O {[%emt 0:03:29]} 14. Rfc1 {[%emt 0:11:50]} Rc7 {[%emt 0:06:34]} 15. Ba3 {[%emt 0:13:19]} Rfc8 {[%emt 0:08:38]} 16. g3 {[%emt 0:11:57]} Kf8 {[%emt 0:04:30]} 17. a5 {[%emt 0:12:31]} b5 {[%emt 0:07:32]} 18. Bb2 {[%emt 0:01:37]} Rb8 {[%emt 0:09:36]} 19. Ne1 {[%emt 0:06:19]} cxd4 {[%emt 0:05:31]} 20. exd4 {[%emt 0:00:22]} Nd5 {[%emt 0:02:54]} 21. Nd3 {[%emt 0:00:38]} (21. h4 $11) 21... Rbc8 $15 {[%emt 0:01:55][%cal Rd5c3]} 22. c4 {[%emt 0:01:55]} bxc4 {[%emt 0:01:28]} (22... Ndb4 $5 {[%cal Rb4d3]} 23. Ne1 (23. cxb5 $2 Nxd3 24. Rxc7 Nxc7 $19) 23... bxc4 24. bxc4 Kg8 $11) 23. bxc4 {[%emt 0:00:14]} Ndb4 {[%emt 0:01:06]} 24. Nxb4 {[%emt 0:00:21]} Nxb4 {[%emt 0:00:37][%cal Ba6b4,Bb4c6,Bc6a5][%mdl 32]} 25. Ba3 {[%emt 0:04:20]} (25. Bc3 $11) 25... a6 {[%emt 0:02:51]} 26. Rab1 {[%emt 0:01:36]} Nc6 {[%emt 0:01:20][%csl LRa3,LRa5,LRd4]} 27. Bxe7+ {[%emt 0:00:45]} Kxe7 {[%emt 0:00:09]} 28. Nb3 {[%emt 0:00:12]} (28. d5 $17 Nxa5 29. Rb4) 28... Rb7 $19 {[%emt 0:01:50] ...Rcb8 would be deadly.} 29. Nc5 {[%emt 0:06:14]} Rxb1 {[%emt 0:00:19]} 30. Rxb1 {[%emt 0:00:01]} Nxa5 $17 {[%emt 0:01:09][%mdl 4096] Endgame KRN-KRN} 31. Ra1 {[%emt 0:01:37]} Nxc4 {[%emt 0:00:57]} 32. Rxa6 {[%emt 0:00:21]} Rc7 {[%emt 0:00:44]} 33. Ra4 {[%emt 0:00:53]} Nb6 {[%emt 0:00:40]} 34. Ra6 {[%emt 0:00:21]} Nd5 {[%emt 0:00:22]} 35. Kg2 {[%emt 0:02:23]} Nc3 {[%emt 0:03:33]} 36. Kf3 {[%emt 0:03:23]} d6 {[%emt 0:03:27]} 37. Nb3 {[%emt 0:00:09]} Nd5 {[%emt 0:00:25]} 38. Nd2 {[%emt 0:01:28]} Nb4 {[%emt 0:02:30]} 39. Ra4 {[%emt 0:01:00]} Nc6 {[%emt 0:00:43]} 40. Ke3 {[%emt 0:00:52]} Kd7 {[%emt 0:01:11]} 41. Ra6 {[%emt 0:04:45]} Ra7 {[%emt 0:00:52]} 42. Rxa7+ {[%emt 0:00:35]} Nxa7 {[%emt 0:00:06] KN-KN} 43. Ne4 {[%emt 0:00:14]} h6 {[%emt 0:00:27]} 44. Nc3 {[%emt 0:00:09]} Nc8 {[%emt 0:00:39]} 45. d5 {[%emt 0:00:34]} e5 {[%emt 0:00:20]} 46. Na4 {[%emt 0:00:24]} f5 {[%emt 0:00:47]} 47. f4 {[%emt 0:00:27]} e4 {[%emt 0:00:16]} (47... Kc7 $19 {Threatens to win with ...Ne7.} 48. Kd3 exf4 49. gxf4 g5 50. fxg5 hxg5) 48. Kd4 {[%emt 0:00:31]} Kc7 {[%emt 0:00:14]} 49. h3 {[%emt 0:00:55]} Kb7 {[%emt 0:00:35]} (49... g6 $17) 50. g4 $11 {[%emt 0:00:15]} g6 {[%emt 0:00:14]} 51. Nb2 {[%emt 0:00:18]} Kc7 {[%emt 0:00:41]} 52. Nc4 {[%emt 0:00:16]} Kd7 {[%emt 0:00:44]} 53. Ne3 {[%emt 0:00:43]} Ne7 {[%emt 0:00:13]} 54. Ng2 {[%emt 0:00:45]} Ke8 {[%emt 0:00:21]} 55. g5 {[%emt 0:00:39]} (55. Kc4 $1 $11 {keeps the balance.}) 55... hxg5 {[%emt 0:05:23]} (55... h5 $17 {...Nc8 is the strong threat.} 56. Nh4 Kf8 {[%mdl 64] Decoy}) 56. fxg5 {[%emt 0:00:02]} Nc8 {[%emt 0:01:31]} 57. Nf4 {[%emt 0:01:08]} Kf7 {[%emt 0:00:21]} 58. Kc4 {[%emt 0:00:29]} Ne7 {[%emt 0:03:35]} 59. Kd4 {[%emt 0:00:32]} Ke8 {[%emt 0:02:01]} (59... Kf8 $17) 60. Kc4 {[%emt 0:00:22]} (60. Ng2 $11) 60... Kd7 {[%emt 0:00:39]} 61. Kd4 {[%emt 0:00:28]} Kc7 {[%emt 0:00:54]} 62. Ne6+ {[%emt 0:00:20]} Kb6 {[%emt 0:02:11]} (62... Kc8 $1 $17) 63. Nf4 {[%emt 0:00:09]} Kb7 {[%emt 0:10:53]} 64. Ne6 {[%emt 0:00:21]} (64. h4 $11 {remains equal.}) 64... Kb6 {[%emt 0:01:25]} (64... Kc8 $1 $17) 65. Nf4 {[%emt 0:00:18]} Kc7 {[%emt 0:00:55]} (65... Kb5 $11) 66. Ne6+ $1 $17 {[%emt 0:00:09] [#]} Kb7 {[%emt 0:00:17]} ({Black should try} 66... Kc8 $1 $17) 67. Nd8+ {[%emt 0:00:18] [#]} (67. Nf4 $11) 67... Kb6 {[%emt 0:00:26]} (67... Kc8 $1 $17 {[%cal Rc8d8]} 68. Nc6 Ng8) 68. Ne6 $11 {[%emt 0:00:11]} Kb5 {[%emt 0:03:48]} 69. Nf4 {[%emt 0:01:59]} Kb4 {[%emt 0:00:25]} 70. h4 {[%emt 0:00:54]} Kb3 {[%emt 0:01:18]} 71. h5 {[%emt 0:00:51]} gxh5 {[%emt 0:00:18]} 72. Nxh5 {[%emt 0:00:06]} Kc2 {[%emt 0:00:37]} 73. Ng3 $1 {[%emt 0:05:32]} ({Don't go for} 73. Nf4 $2 Kd2 74. Ng2 (74. g6 $2 e3 $19) 74... Ke2 $19) 73... Kd2 {[%emt 0:01:32]} 74. g6 $1 {[%emt 0:01:00]} e3 {[%emt 0:02:23] ( -> ...e2)} 75. Nf1+ {[%emt 0:00:22]} Ke2 {[%emt 0:00:09]} 76. Nxe3 {[%emt 0:00:08]} f4 {[%emt 0:00:17][%cal Bf5f4,Bf4f3,Bf3f2][%mdl 32]} 77. Ng4 $2 {[%emt 0:01:13][%mdl 8192]} (77. Nc4 $11) 77... f3 {[%emt 0:00:33] Black mates.} 78. Ke4 {[%emt 0:00:58]} Nxg6 {[%emt 0:00:15]} 79. Kf5 {[%emt 0:00:26] [#]} Ne5 $1 {[%emt 0:00:33][%mdl 512]} 80. Nh2 {[%emt 0:02:03]} (80. Nxe5 dxe5) 80... f2 {[%emt 0:00:15]} 81. Ke6 {[%emt 0:00:08]} Nf3 {[%emt 0:00:43] Weighted Error Value: White=0.15 (very precise) /Black=0.14 (very precise)} ({And not} 81... f1=R 82. Nxf1 Kxf1 83. Kxd6 Nc4+ 84. Ke7 $11) 0-1

[Event "CZE-ch U16 Open 2023"]
[Site "Teplice"]
[Date "2023.03.13"]
[Round "3.9"]
[White "Davidek, Zdenek"]
[Black "Dolensky, Filip"]
[Result "1/2-1/2"]
[ECO "E10"]
[WhiteElo "1957"]
[BlackElo "2108"]
[Annotator "TA"]
[PlyCount "64"]
[EventDate "2023.03.09"]
[EventType "swiss"]
[EventCountry "CZE"]
[SourceTitle "playchess.com"]
[Source "ChessBase"]
[SourceQuality "1"]
[TimeControl "40/5400+30:1800+30"]

{[%evp 11,64,74,75,70,96,94,102,89,89,59,48,49,41,46,51,0,0,0,-23,-11,-2,0,18,14,15,0,29,23,33,33,32,0,0,0,0,0,0,0,0,-38,-44,-34,-18,-18,-17,-17,-17,-18,-18,-35,0,0,0,0,0]} 1. d4 {[%emt 0:00:09]} c5 {[%emt 0:00:21]} 2. d5 {[%emt 0:00:13]} Nf6 {[%emt 0:00:07]} 3. Nf3 {[%emt 0:00:21]} e6 {[%emt 0:01:02]} 4. c4 {[%emt 0:01:02]} b5 {[%emt 0:00:24]} 5. Bg5 {[%emt 0:00:11]} h6 {[%emt 0:02:28]} 6. Bxf6 {[%emt 0:09:18]} Qxf6 {[%emt 0:01:41]} 7. Nc3 {[%emt 0:04:53] E10: Blumenfeld Gambit.} a6 {[%emt 0:13:30]} 8. cxb5 {[%emt 0:16:29]} axb5 {[%emt 0:07:16]} 9. Nxb5 {[%emt 0:03:19] [#] White is better.} Na6 $146 {[%emt 0:01:16] Wards off Nc7+} ({Predecessor:} 9... Ra5 10. Nc7+ Kd8 11. Qd2 Ra7 12. Nb5 Rb7 13. Qa5+ Ke8 14. Nc7+ Kd8 15. Nxe6+ Ke8 16. Nxf8 Qxb2 {1-0 Malygin,A (2199)-Memarian,M (2018) Chigorin Memorial 18th 2010 (4)}) 10. Nc3 {[%emt 0:08:55]} Rb8 {[%emt 0:08:54]} 11. Rb1 {[%emt 0:00:43]} c4 {[%emt 0:13:57][%cal Ob8b2]} 12. e3 {[%emt 0:12:30]} Bb4 {[%emt 0:18:04]} 13. Bxc4 {[%emt 0:09:59]} (13. Rc1 $14) 13... Bxc3+ $11 {[%emt 0:02:05]} 14. bxc3 {[%emt 0:00:01]} Rxb1 {[%emt 0:01:51]} 15. Qxb1 {[%emt 0:00:21] [#] 0-0 is the strong threat.} Qxc3+ {[%emt 0:00:23]} 16. Nd2 {[%emt 0:00:04]} O-O {[%emt 0:04:47]} 17. Ke2 {[%emt 0:10:41]} (17. Qb3 {simplifies} Qa5 18. Qb2 exd5 19. Be2) 17... exd5 {[%emt 0:07:36]} 18. Bxd5 {[%emt 0:01:28]} Nc5 {[%emt 0:03:24]} 19. Rc1 {[%emt 0:02:59]} ({Not} 19. Ne4 $2 Ba6+ 20. Kf3 Qe5 $19) 19... Ba6+ {[%emt 0:01:14]} 20. Bc4 {[%emt 0:01:52]} Qa5 {[%emt 0:02:27]} 21. g3 {[%emt 0:05:34]} (21. Ke1 $5 {[%cal Rc4a6]}) 21... d5 {[%emt 0:00:59][%mdl 64] [#] Pin} 22. Bxa6 {[%emt 0:00:04]} Qxa6+ {[%emt 0:00:04]} 23. Kf3 {[%emt 0:01:35]} Nd3 {[%emt 0:00:30] White must now prevent ...d4.} 24. Rf1 {[%emt 0:00:01]} d4 {[%emt 0:01:44]} 25. Kg2 {[%emt 0:01:46]} dxe3 {[%emt 0:00:06]} 26. fxe3 {[%emt 0:00:15]} Ne5 {[%emt 0:00:32]} 27. Qe4 {[%emt 0:01:09]} Qxa2 {[%emt 0:00:38]} (27... Rd8 {is more complex.} 28. Qxe5 Rxd2+ 29. Rf2 Qa8+) 28. Qxe5 {[%emt 0:00:08] And now Qd4 would win.} Qxd2+ {[%emt 0:00:06]} 29. Rf2 {[%emt 0:00:07]} Qd7 {[%emt 0:00:18]} 30. Qf5 {[%emt 0:01:11]} Qxf5 {[%emt 0:00:49]} 31. Rxf5 {[%emt 0:00:01]} g6 {[%emt 0:01:31]} 32. Ra5 {[%emt 0:02:52]} Re8 {[%emt 0:00:20] Weighted Error Value: White=0.11 (very precise) /Black=0.07 (flawless)} 1/2-1/2

[Event "CZE-ch U16 Open 2023"]
[Site "Teplice"]
[Date "2023.03.13"]
[Round "3.10"]
[White "Tesar, Jakub"]
[Black "Svoboda, Daniel"]
[Result "1/2-1/2"]
[ECO "B22"]
[WhiteElo "1960"]
[BlackElo "1748"]
[Annotator "TA"]
[PlyCount "60"]
[EventDate "2023.03.09"]
[EventType "swiss"]
[EventCountry "CZE"]
[SourceTitle "playchess.com"]
[Source "ChessBase"]
[SourceQuality "1"]
[TimeControl "40/5400+30:1800+30"]

{[%evp 16,60,-2,8,8,-10,-1,6,6,-1,6,-8,-1,-1,6,-2,9,0,0,0,0,-79,-77,-69,-71,-92,-101,-98,-10,-14,-4,-13,30,14,18,27,14,0,7,0,17,0,11,0,37,0,23]} 1. e4 {[%emt 0:00:06][%cal Be2e4,Be4e5][%mdl 32]} c5 {[%emt 0:00:19]} 2. c3 {[%emt 0:00:13]} Nf6 {[%emt 0:00:40]} 3. e5 {[%emt 0:00:17]} Nd5 {[%emt 0:00:07]} 4. d4 {[%emt 0:00:05]} cxd4 {[%emt 0:00:09]} 5. cxd4 {[%emt 0:00:06]} d6 {[%emt 0:00:07]} 6. Nf3 {[%emt 0:00:07]} Nc6 {[%emt 0:00:08]} 7. Bc4 {[%emt 0:00:17]} dxe5 {[%emt 0:00:24]} 8. dxe5 {[%emt 0:00:17]} Ndb4 {[%emt 0:00:43]} 9. Qb3 {[%emt 0:00:51]} e6 {[%emt 0:00:38] B22: Sicilian: 2 c3.} 10. O-O {[%emt 0:00:09]} Na5 {[%emt 0:00:54]} 11. Bb5+ {[%emt 0:00:37]} Bd7 {[%emt 0:01:35]} 12. Qa4 {[%emt 0:00:28]} Bxb5 {[%emt 0:00:55]} 13. Qxb5+ {[%emt 0:00:07]} Nac6 {[%emt 0:00:30] aiming for ...Nc2.} 14. Nc3 {[%emt 0:00:45]} (14. Qxb7 $2 {perishes.} Rb8 15. Bg5 Rxb7 $19) 14... a6 {[%emt 0:01:34]} 15. Qc4 {[%emt 0:00:10]} (15. Qxb7 $2 {loses.} Rb8 16. Bg5 Qa5 $19) 15... Qd3 $132 {[%emt 0:01:30][%mdl 2048] Prevents Rd1. Black is fighting back} 16. Qg4 {[%emt 0:00:22]} h5 {[%emt 0:00:48] 16...Qg6 is more advanced technology.} 17. Qh4 {[%emt 0:15:34]} Qf5 {[%emt 0:11:36] [#]} 18. Qe4 $146 {[%emt 0:16:08]} (18. Bg5 $11 {remains equal.}) ({Predecessor:} 18. Bg5 Nd3 19. Rad1 Bb4 20. Ne4 Ndxe5 21. Nxe5 Nxe5 22. Rd4 Bf8 23. Re1 f6 24. Qg3 {½-½ Pospisil,L (2511)-Scherer,R (2589) EU-chT8 fin email 2012 [1]}) 18... Qxe4 $17 {[%emt 0:25:51]} 19. Nxe4 {[%emt 0:00:06]} Nd3 {[%emt 0:11:22]} 20. Nd6+ {[%emt 0:00:07]} Bxd6 {[%emt 0:02:41]} 21. exd6 {[%emt 0:00:06]} Nxc1 {[%emt 0:04:04]} (21... O-O-O $17 22. Ng5 Rhf8) 22. Raxc1 $11 {[%emt 0:00:10]} Rd8 {[%emt 0:05:44]} 23. Rfd1 {[%emt 0:00:25]} Rd7 {[%emt 0:05:59]} 24. Ng5 {[%emt 0:45:21]} O-O {[%emt 0:02:10]} 25. Ne4 {[%emt 0:00:07] Black must now prevent Nc5.} Rfd8 {[%emt 0:01:16]} 26. Re1 {[%emt 0:01:14]} Rb8 {[%emt 0:10:23]} 27. Red1 {[%emt 0:06:21]} Rbd8 {[%emt 0:00:54]} 28. Re1 {[%emt 0:00:10]} Rb8 {[%emt 0:01:02]} 29. Red1 {[%emt 0:00:21]} Rbd8 {[%emt 0:00:29]} 30. Re1 {[%emt 0:00:19]} Rb8 {[%emt 0:00:14] Weighted Error Value: White=0.13 (very precise) /Black=0.09 (flawless)} 1/2-1/2